[Event "7° Rencontres Internationales des Echecs Francophones"]
[Site "PARIS, France"]
[Date "2019.08.10"]
[Round "1.2"]
[White "Le Bas, Alexis"]
[Black "Gurevich, Mikhail"]
[Result "0-1"]
[TimeControl "90'+30' + 30seconds/move"]
[WhiteElo "1877"]
[BlackElo "2559"]

1. c4 {[%clk 00:05:08]} {[%emt 00:00:02]} f5 {[%clk 00:05:04]} 2. Nc3 {[%clk
00:05:04]} {[%emt 00:00:07]} Nf6 {[%clk 00:05:05]} {[%emt 00:00:02]} 3. g3
{[%clk 00:05:03]} {[%emt 00:00:04]} d6 {[%clk 00:05:03]} {[%emt 00:00:04]} 4.
Nf3 {[%clk 00:05:03]} {[%emt 00:00:04]} g6 {[%clk 00:05:03]} {[%emt 00:00:02]}
5. Bg2 {[%clk 00:05:04]} {[%emt 00:00:02]} Bg7 {[%clk 00:05:05]} 6. O-O {[%clk
00:05:04]} {[%emt 00:00:03]} O-O {[%clk 00:05:07]} {[%emt 00:00:02]} 7. e3
{[%clk 00:05:05]} {[%emt 00:00:03]} e5 {[%clk 00:05:02]} {[%emt 00:00:07]} 8.
b3 {[%clk 00:05:01]} {[%emt 00:00:07]} Nc6 {[%clk 00:04:58]} {[%emt 00:00:08]}
9. Bb2 {[%clk 00:05:01]} {[%emt 00:00:03]} e4 {[%clk 00:04:56]} {[%emt
00:00:04]} 10. Ne1 {[%clk 00:04:32]} {[%emt 00:00:36]} d5 {[%clk 00:04:54]} 11.
d4 {[%clk 00:04:21]} {[%emt 00:00:14]} Be6 {[%clk 00:04:51]} {[%emt 00:00:06]}
12. c5 {[%clk 00:04:03]} {[%emt 00:00:22]} Rf7 {[%clk 00:04:20]} {[%emt
00:00:34]} 13. Nc2 {[%clk 00:03:58]} {[%emt 00:00:08]} h5 {[%clk 00:04:16]}
{[%emt 00:00:06]} 14. Ne2 {[%clk 00:03:26]} {[%emt 00:00:35]} g5 {[%clk
00:04:15]} {[%emt 00:00:03]} 15. a3 {[%clk 00:03:13]} {[%emt 00:00:17]} Ne7
{[%clk 00:04:02]} {[%emt 00:00:16]} 16. f3 {[%clk 00:03:00]} {[%emt 00:00:17]}
Ng6 {[%clk 00:03:21]} {[%emt 00:00:43]} 17. fxe4 {[%clk 00:02:41]} {[%emt
00:00:23]} fxe4 {[%clk 00:03:18]} {[%emt 00:00:06]} 18. Qd2 {[%clk 00:02:14]}
{[%emt 00:00:30]} Qd7 {[%clk 00:03:15]} {[%emt 00:00:05]} 19. Rf2 {[%clk
00:02:08]} {[%emt 00:00:10]} h4 {[%clk 00:03:09]} {[%emt 00:00:09]} 20. Raf1
{[%clk 00:01:41]} {[%emt 00:00:30]} Raf8 {[%clk 00:03:04]} {[%emt 00:00:08]} 21.
Bc1 {[%clk 00:01:32]} {[%emt 00:00:12]} c6 {[%clk 00:02:59]} {[%emt 00:00:08]}
22. b4 {[%clk 00:01:33]} {[%emt 00:00:02]} h3 {[%clk 00:02:38]} {[%emt
00:00:23]} 23. Bh1 {[%clk 00:01:33]} {[%emt 00:00:04]} Ng4 {[%clk 00:02:39]}
{[%emt 00:00:02]} 24. Rxf7 {[%clk 00:01:32]} {[%emt 00:00:04]} Rxf7 {[%clk
00:02:40]} {[%emt 00:00:02]} 25. Qe1 {[%clk 00:01:21]} {[%emt 00:00:13]} Qe8
{[%clk 00:02:41]} {[%emt 00:00:02]} 26. Rxf7 Qxf7 {[%clk 00:02:42]} 27. Qf1
{[%clk 00:01:04]} {[%emt 00:00:12]} Qxf1+ {[%clk 00:02:41]} {[%emt 00:00:04]}
28. Kxf1 {[%clk 00:01:04]} {[%emt 00:00:03]} Nxh2+ {[%clk 00:02:42]} {[%emt
00:00:02]} 29. Ke1 {[%clk 00:00:33]} {[%emt 00:00:35]} Bf8 {[%clk 00:02:36]}
{[%emt 00:00:09]} 30. a4 {[%clk 00:00:29]} {[%emt 00:00:07]} Bg4 {[%clk
00:02:27]} {[%emt 00:00:11]} 31. b5 {[%clk 00:00:27]} {[%emt 00:00:05]} Bf3
{[%clk 00:02:11]} {[%emt 00:00:19]} 32. Bxf3 {[%clk 00:00:23]} {[%emt
00:00:07]} exf3 {[%clk 00:02:13]} {[%emt 00:00:02]} 33. Nc3 {[%clk 00:00:16]}
{[%emt 00:00:10]} Ng4 {[%clk 00:02:10]} {[%emt 00:00:04]} 0-1

[Event "7° Rencontres Internationales des Echecs Francophones"]
[Site "PARIS, France"]
[Date "2019.08.10"]
[Round "1.6"]
[White "Moracchini, Margaux"]
[Black "Sebag, Marie"]
[Result "0-1"]
[TimeControl "90'+30' + 30seconds/move"]
[WhiteElo "1869"]
[BlackElo "2494"]

1. e4 {[%clk 00:05:04]} {[%emt 01:37:37]} c5 {[%clk 00:05:05]} 2. Nf3 {[%clk
00:05:05]} d6 {[%clk 00:05:07]} {[%emt 00:00:02]} 3. Nc3 {[%clk 00:05:04]}
{[%emt 00:00:02]} Nf6 {[%clk 00:05:08]} {[%emt 00:00:02]} 4. d4 {[%clk
00:04:56]} {[%emt 00:00:12]} cxd4 {[%clk 00:05:09]} {[%emt 00:00:01]} 5. Qxd4
{[%clk 00:04:55]} {[%emt 00:00:04]} a6 {[%clk 00:05:10]} {[%emt 00:00:03]} 6.
e5 {[%clk 00:04:29]} {[%emt 00:00:28]} Nc6 {[%clk 00:05:09]} {[%emt 00:00:04]}
7. Qa4 {[%clk 00:04:30]} {[%emt 00:00:02]} dxe5 {[%clk 00:04:09]} {[%emt
00:01:03]} 8. Nxe5 {[%clk 00:04:24]} {[%emt 00:00:09]} Bd7 {[%clk 00:04:10]}
{[%emt 00:00:02]} 9. Nxd7 {[%clk 00:04:10]} {[%emt 00:00:17]} Qxd7 {[%clk
00:04:12]} {[%emt 00:00:01]} 10. Be3 {[%clk 00:03:18]} {[%emt 00:00:55]} g6
{[%clk 00:04:04]} {[%emt 00:00:11]} 11. Rd1 {[%clk 00:03:08]} {[%emt 00:00:13]}
Qc8 {[%clk 00:03:56]} {[%emt 00:00:11]} 12. Bb6 {[%clk 00:02:51]} {[%emt
00:00:20]} Nd7 {[%clk 00:03:11]} {[%emt 00:00:48]} 13. Bd4 {[%clk 00:02:14]}
{[%emt 00:00:40]} b5 {[%clk 00:02:35]} {[%emt 00:00:40]} 14. Qb3 {[%clk
00:02:11]} {[%emt 00:00:06]} Nxd4 {[%clk 00:01:58]} {[%emt 00:00:39]} 15. Rxd4
{[%clk 00:02:13]} {[%emt 00:00:01]} Nc5 {[%clk 00:01:47]} {[%emt 00:00:15]} 16.
Qd5 {[%clk 00:01:59]} {[%emt 00:00:17]} Bg7 {[%clk 00:01:34]} {[%emt 00:00:15]}
17. Rd2 {[%clk 00:01:26]} {[%emt 00:00:37]} O-O {[%clk 00:01:32]} {[%emt
00:00:05]} 18. Be2 {[%clk 00:01:27]} {[%emt 00:00:02]} b4 {[%clk 00:01:14]}
{[%emt 00:00:21]} 19. Nd1 {[%clk 00:01:27]} {[%emt 00:00:03]} Rd8 {[%clk
00:00:46]} {[%emt 00:00:30]} 20. Qxd8+ {[%clk 00:01:26]} {[%emt 00:00:05]} Qxd8
{[%clk 00:00:48]} 21. Rxd8+ {[%clk 00:01:27]} Rxd8 {[%clk 00:00:50]} 22. c3
{[%clk 00:01:04]} {[%emt 00:00:26]} a5 {[%clk 00:00:52]} {[%emt 00:00:01]} 23.
Bc4 {[%clk 00:00:56]} {[%emt 00:00:11]} Ne4 {[%clk 00:00:35]} {[%emt 00:00:20]}
24. f3 {[%clk 00:00:25]} {[%emt 00:00:34]} bxc3 {[%clk 00:00:30]} {[%emt
00:00:07]} 25. bxc3 {[%clk 00:00:18]} {[%emt 00:00:11]} Rxd1+ {[%clk 00:00:27]}
{[%emt 00:00:05]} 26. Kxd1 {[%clk 00:00:16]} {[%emt 00:00:04]} Nf2+ {[%clk
00:00:29]} {[%emt 00:00:01]} 27. Ke2 {[%clk 00:00:18]} Nxh1 {[%clk 00:00:31]}
28. Kf1 {[%clk 00:00:13]} {[%emt 00:00:09]} Bxc3 {[%clk 00:00:25]} {[%emt
00:00:09]} 29. Kg1 {[%clk 00:00:15]} e6 {[%clk 00:00:26]} {[%emt 00:00:01]} 30.
Kxh1 {[%clk 00:00:17]} {[%emt 00:00:02]} Bd4 {[%clk 00:00:28]} {[%emt
00:00:01]} 31. g3 {[%clk 00:00:18]} Kf8 {[%clk 00:00:30]} 32. Kg2 {[%clk
00:00:21]} Ke7 {[%clk 00:00:33]} 33. Kf1 {[%clk 00:00:23]} Kd6 {[%clk
00:00:35]} {[%emt 00:00:03]} 34. Ke2 {[%clk 00:00:26]} Kc5 {[%clk 00:00:37]} 35.
Kd3 {[%clk 00:00:28]} Bg1 {[%clk 00:00:39]} {[%emt 00:00:03]} 36. h3 {[%clk
00:00:30]} h5 {[%clk 00:00:35]} {[%emt 00:00:06]} 37. g4 {[%clk 00:00:28]}
{[%emt 00:00:05]} h4 {[%clk 00:00:37]} 38. a3 {[%clk 00:00:28]} {[%emt
00:00:03]} Bd4 {[%clk 00:00:37]} {[%emt 00:00:03]} 39. Bb3 {[%clk 00:00:30]}
{[%emt 00:00:01]} Bb2 {[%clk 00:00:38]} {[%emt 00:00:02]} 40. Ba4 {[%clk
00:00:28]} {[%emt 00:00:06]} Bxa3 {[%clk 00:00:28]} {[%emt 00:00:13]} 41. Be8
{[%emt 00:00:02]} f5 {[%clk 00:00:21]} {[%emt 00:00:09]} 42. Bxg6 {[%clk
00:00:29]} {[%emt 00:00:03]} fxg4 {[%clk 00:00:23]} {[%emt 00:00:01]} 43. fxg4
{[%clk 00:00:30]} {[%emt 00:00:02]} Bc1 {[%clk 00:00:21]} {[%emt 00:00:05]} 44.
Kc3 {[%clk 00:00:29]} {[%emt 00:00:04]} Kd5 {[%clk 00:00:20]} {[%emt 00:00:04]}
45. Bf7 {[%clk 00:00:29]} {[%emt 00:00:04]} Ke5 {[%clk 00:00:22]} 46. Kb3
{[%clk 00:00:22]} {[%emt 00:00:10]} Kf6 {[%clk 00:00:24]} {[%emt 00:00:01]} 47.
Bg8 {[%clk 00:00:20]} {[%emt 00:00:04]} e5 {[%clk 00:00:24]} {[%emt 00:00:03]}
48. Kc4 {[%clk 00:00:20]} {[%emt 00:00:03]} Kg5 {[%clk 00:00:25]} {[%emt
00:00:01]} 49. Kd5 {[%clk 00:00:22]} {[%emt 00:00:03]} Kf4 {[%clk 00:00:24]}
{[%emt 00:00:04]} 50. Bh7 {[%clk 00:00:19]} {[%emt 00:00:06]} Bb2 {[%clk
00:00:18]} {[%emt 00:00:09]} 51. Bc2 {[%clk 00:00:18]} {[%emt 00:00:03]} Bc3
{[%clk 00:00:12]} {[%emt 00:00:09]} 52. Bd3 {[%clk 00:00:16]} {[%emt 00:00:05]}
a4 {[%clk 00:00:14]} {[%emt 00:00:02]} 53. Kc4 {[%clk 00:00:09]} {[%emt
00:00:09]} Bd4 {[%clk 00:00:15]} {[%emt 00:00:02]} 54. Kb4 {[%clk 00:00:00]}
{[%emt 00:00:09]} e4 {[%clk 00:00:15]} 55. Bxe4 {[%emt 00:00:06]} 0-1

[Event "7° Rencontres Internationales des Echecs Francophones"]
[Site "PARIS, France"]
[Date "2019.08.10"]
[Round "1.4"]
[White "Ben Hamed, Cherif"]
[Black "Le Roux, Jean-Pierre"]
[Result "0-1"]
[TimeControl "90'+30' + 30seconds/move"]
[WhiteElo "1869"]
[BlackElo "2535"]

1. d4 {[%clk 00:05:05]} {[%emt 00:02:25]} Nf6 {[%clk 00:05:05]} {[%emt
00:00:07]} 2. c4 {[%clk 00:05:06]} b6 {[%emt 00:00:02]} 3. Nc3 Bb7 {[%clk
00:05:09]} 4. f3 {[%clk 00:05:03]} {[%emt 00:00:04]} d5 {[%clk 00:05:08]}
{[%emt 00:00:04]} 5. cxd5 {[%clk 00:05:00]} {[%emt 00:00:05]} Nxd5 {[%clk
00:05:10]} {[%emt 00:00:02]} 6. e4 {[%clk 00:05:00]} {[%emt 00:00:03]} Nxc3
{[%clk 00:05:11]} {[%emt 00:00:02]} 7. bxc3 {[%clk 00:05:01]} {[%emt 00:00:02]}
e5 {[%clk 00:05:14]} 8. Bc4 {[%clk 00:04:44]} {[%emt 00:00:19]} exd4 {[%clk
00:04:38]} {[%emt 00:00:39]} 9. cxd4 {[%clk 00:04:46]} {[%emt 00:00:01]} Bb4+
{[%clk 00:04:12]} {[%emt 00:00:30]} 10. Kf2 {[%clk 00:04:37]} {[%emt 00:00:10]}
O-O {[%clk 00:04:01]} {[%emt 00:00:15]} 11. Ne2 {[%clk 00:04:38]} {[%emt
00:00:02]} Nd7 {[%clk 00:03:43]} {[%emt 00:00:22]} 12. Qb3 {[%clk 00:04:24]}
{[%emt 00:00:16]} Qh4+ {[%clk 00:02:50]} {[%emt 00:00:55]} 13. g3 {[%clk
00:03:54]} {[%emt 00:00:34]} Qe7 {[%clk 00:02:53]} 14. a3 {[%clk 00:03:20]}
{[%emt 00:00:38]} Ba5 {[%clk 00:02:53]} {[%emt 00:00:03]} 15. Be3 {[%clk
00:02:43]} {[%emt 00:00:39]} Kh8 {[%clk 00:02:43]} {[%emt 00:00:13]} 16. Nf4
{[%clk 00:02:34]} {[%emt 00:00:12]} c5 {[%clk 00:02:38]} {[%emt 00:00:09]} 0-1

[Event "7° Rencontres Internationales des Echecs Francophones"]
[Site "PARIS, France"]
[Date "2019.08.10"]
[Round "1.10"]
[White "Oualili, Abdelali"]
[Black "Shchekachev, Andrei"]
[Result "0-1"]
[TimeControl "90'+30' + 30seconds/move"]
[WhiteElo "1839"]
[BlackElo "2446"]

1. e4 {[%clk 00:05:05]} {[%emt 01:34:11]} c5 {[%clk 00:05:04]} 2. Nc3 {[%clk
00:05:07]} e6 {[%clk 00:05:04]} {[%emt 00:00:02]} 3. g3 {[%clk 00:05:09]} d5
{[%clk 00:05:05]} {[%emt 00:00:02]} 4. exd5 {[%clk 00:05:04]} {[%emt 00:00:09]}
exd5 {[%clk 00:05:06]} 5. Bg2 {[%clk 00:05:06]} {[%emt 00:00:02]} Nf6 {[%clk
00:05:07]} {[%emt 00:00:01]} 6. d3 {[%clk 00:05:06]} {[%emt 00:00:03]} d4
{[%clk 00:05:07]} {[%emt 00:00:03]} 7. Ne4 {[%clk 00:05:03]} {[%emt 00:00:06]}
Be7 {[%clk 00:04:32]} {[%emt 00:00:38]} 8. Ne2 {[%clk 00:04:46]} {[%emt
00:00:20]} Nxe4 {[%clk 00:04:30]} {[%emt 00:00:04]} 9. Bxe4 {[%clk 00:04:48]}
{[%emt 00:00:01]} O-O {[%clk 00:04:29]} {[%emt 00:00:08]} 10. O-O {[%clk
00:04:50]} Nd7 {[%clk 00:04:31]} 11. Nf4 {[%clk 00:04:36]} {[%emt 00:00:15]}
Nf6 {[%clk 00:04:30]} {[%emt 00:00:03]} 12. Bg2 {[%clk 00:04:11]} {[%emt
00:00:29]} Bg4 {[%clk 00:04:06]} {[%emt 00:00:26]} 13. f3 {[%clk 00:04:08]}
{[%emt 00:00:07]} Bd7 {[%clk 00:04:03]} {[%emt 00:00:05]} 14. Bd2 {[%clk
00:04:03]} {[%emt 00:00:08]} Bd6 {[%clk 00:04:03]} {[%emt 00:00:04]} 15. Qe1
{[%clk 00:03:40]} {[%emt 00:00:26]} Re8 {[%emt 00:00:12]} 16. Qf2 Bxf4 {[%clk
00:03:45]} {[%emt 00:00:11]} 17. Bxf4 {[%clk 00:03:35]} {[%emt 00:00:11]} Nd5
{[%clk 00:03:46]} 18. Bd2 {[%clk 00:03:37]} {[%emt 00:00:03]} Ne3 {[%clk
00:03:47]} {[%emt 00:00:02]} 19. Bxe3 {[%clk 00:03:36]} {[%emt 00:00:05]} Rxe3
{[%clk 00:03:46]} {[%emt 00:00:03]} 20. Rfe1 {[%clk 00:02:36]} {[%emt
00:01:03]} Qe7 {[%clk 00:03:45]} {[%emt 00:00:03]} 21. Rxe3 {[%clk 00:02:34]}
{[%emt 00:00:06]} dxe3 {[%clk 00:03:46]} {[%emt 00:00:02]} 22. Qe2 {[%clk
00:02:32]} {[%emt 00:00:04]} Bc6 {[%clk 00:03:22]} {[%emt 00:00:27]} 23. Re1
{[%clk 00:02:31]} {[%emt 00:00:05]} Re8 {[%clk 00:03:23]} {[%emt 00:00:02]} 24.
f4 {[%clk 00:02:07]} {[%emt 00:00:27]} Bxg2 {[%clk 00:03:23]} {[%emt 00:00:03]}
25. Qxg2 {[%clk 00:01:50]} {[%emt 00:00:20]} h6 {[%clk 00:03:16]} {[%emt
00:00:09]} 26. Qf3 {[%clk 00:01:40]} {[%emt 00:00:13]} b6 {[%clk 00:03:12]}
{[%emt 00:00:08]} 27. Re2 {[%clk 00:01:42]} {[%emt 00:00:01]} Qe6 {[%clk
00:03:05]} {[%emt 00:00:09]} 28. c4 {[%clk 00:01:10]} {[%emt 00:00:35]} g6
{[%clk 00:02:44]} {[%emt 00:00:24]} 29. Kg2 {[%clk 00:01:09]} {[%emt 00:00:05]}
Kg7 {[%clk 00:02:38]} {[%emt 00:00:09]} 30. h3 {[%clk 00:01:12]} Re7 {[%clk
00:02:33]} {[%emt 00:00:07]} 31. g4 {[%clk 00:01:14]} Qf6 {[%clk 00:02:00]}
{[%emt 00:00:37]} 32. Kg3 {[%clk 00:01:11]} {[%emt 00:00:06]} Qd4 {[%clk
00:01:58]} {[%emt 00:00:05]} 33. Qd5 {[%clk 00:01:11]} {[%emt 00:00:04]} Rd7
{[%clk 00:01:40]} {[%emt 00:00:21]} 34. Qxd4+ {[%clk 00:01:12]} {[%emt
00:00:01]} cxd4 {[%clk 00:01:41]} {[%emt 00:00:01]} 35. b3 {[%clk 00:01:10]}
{[%emt 00:00:06]} f5 {[%clk 00:01:36]} {[%emt 00:00:08]} 36. Kf3 {[%clk
00:01:05]} {[%emt 00:00:08]} b5 {[%clk 00:01:38]} {[%emt 00:00:02]} 37. Rc2
{[%clk 00:01:07]} Rc7 {[%clk 00:01:27]} {[%emt 00:00:14]} 38. c5 {[%clk
00:01:06]} {[%emt 00:00:03]} Rc6 {[%clk 00:01:23]} {[%emt 00:00:07]} 39. a4
{[%clk 00:01:06]} {[%emt 00:00:03]} a6 {[%clk 00:01:18]} {[%emt 00:00:08]} 40.
Ke2 {[%clk 00:01:07]} {[%emt 00:00:02]} Kf6 {[%clk 00:01:20]} {[%emt 00:00:02]}
41. Kf3 {[%clk 00:01:09]} Ke6 {[%clk 00:01:21]} {[%emt 00:00:02]} 42. h4 {[%clk
00:01:10]} {[%emt 00:00:03]} bxa4 {[%clk 00:01:16]} {[%emt 00:00:08]} 43. bxa4
{[%clk 00:01:12]} Kd5 {[%clk 00:01:11]} {[%emt 00:00:08]} 44. h5 {[%clk
00:01:14]} fxg4+ {[%clk 00:01:12]} {[%emt 00:00:02]} 45. Kxg4 {[%clk 00:01:17]}
{[%emt 00:00:01]} gxh5+ {[%emt 00:00:01]} 46. Kxh5 Rxc5 {[%clk 00:01:14]}
{[%emt 00:00:02]} 47. Rg2 {[%clk 00:00:56]} {[%emt 00:00:25]} Ke6+ {[%clk
00:01:12]} {[%emt 00:00:04]} 48. Kg6 {[%clk 00:00:53]} {[%emt 00:00:08]} Rf5
{[%clk 00:01:05]} {[%emt 00:00:09]} 49. Rb2 {[%clk 00:00:54]} {[%emt 00:00:02]}
Rf6 {[%clk 00:01:03]} {[%emt 00:00:06]} 50. Kg7 {[%clk 00:00:54]} {[%emt
00:00:03]} Rxf4 {[%emt 00:00:03]} 51. Rb6+ Kf5 {[%clk 00:00:59]} {[%emt
00:00:04]} 52. Rxa6 {[%clk 00:00:53]} {[%emt 00:00:05]} h5 {[%clk 00:00:43]}
{[%emt 00:00:18]} 53. Rb6 {[%clk 00:00:48]} {[%emt 00:00:08]} Rf2 {[%clk
00:00:34]} {[%emt 00:00:11]} 54. Rb1 {[%clk 00:00:47]} {[%emt 00:00:05]} Ra2
{[%clk 00:00:33]} {[%emt 00:00:04]} 55. Kh6 {[%clk 00:00:47]} {[%emt 00:00:03]}
e2 {[%clk 00:00:29]} {[%emt 00:00:07]} 56. Re1 {[%clk 00:00:50]} Kf4 {[%clk
00:00:30]} {[%emt 00:00:02]} 57. Kxh5 {[%clk 00:00:52]} {[%emt 00:00:01]} Ke3
{[%clk 00:00:32]} 0-1

[Event "7° Rencontres Internationales des Echecs Francophones"]
[Site "PARIS, France"]
[Date "2019.08.10"]
[Round "1.5"]
[White "Hamdouchi, Hicham"]
[Black "Derr, Julien"]
[Result "1-0"]
[TimeControl "90'+30' + 30seconds/move"]
[WhiteElo "2514"]
[BlackElo "1869"]

1. e4 {[%clk 00:05:04]} {[%emt 00:00:02]} c5 {[%clk 00:05:05]} 2. Nc3 {[%clk
00:05:05]} e6 {[%clk 00:05:07]} 3. Nge2 {[%clk 00:05:06]} {[%emt 00:00:01]} d5
{[%clk 00:05:07]} {[%emt 00:00:03]} 4. exd5 {[%clk 00:05:04]} {[%emt 00:00:05]}
exd5 {[%clk 00:05:09]} 5. d4 {[%clk 00:05:06]} {[%emt 00:00:01]} Nc6 {[%clk
00:04:54]} {[%emt 00:00:19]} 6. Be3 {[%clk 00:04:54]} {[%emt 00:00:14]} cxd4
{[%clk 00:04:41]} {[%emt 00:00:17]} 7. Nxd4 {[%clk 00:04:55]} {[%emt 00:00:01]}
a6 {[%clk 00:04:17]} {[%emt 00:00:27]} 8. Be2 {[%clk 00:04:30]} {[%emt
00:00:27]} Nf6 {[%clk 00:04:19]} {[%emt 00:00:01]} 9. O-O {[%clk 00:04:30]}
{[%emt 00:00:03]} Be7 {[%clk 00:04:15]} {[%emt 00:00:07]} 10. Nxc6 {[%clk
00:03:52]} {[%emt 00:00:41]} bxc6 {[%clk 00:04:16]} {[%emt 00:00:02]} 11. Na4
{[%clk 00:03:54]} {[%emt 00:00:01]} O-O {[%clk 00:03:47]} {[%emt 00:00:32]} 12.
c4 {[%clk 00:03:54]} {[%emt 00:00:03]} Be6 {[%clk 00:02:30]} {[%emt 00:01:20]}
13. Rc1 {[%clk 00:03:49]} {[%emt 00:00:08]} a5 {[%clk 00:01:39]} {[%emt
00:00:54]} 14. Bb6 {[%clk 00:03:30]} {[%emt 00:00:22]} Qb8 {[%clk 00:01:19]}
{[%emt 00:00:23]} 15. Bd4 {[%clk 00:02:31]} {[%emt 00:01:02]} Qd8 {[%clk
00:00:41]} {[%emt 00:00:41]} 16. cxd5 {[%clk 00:02:02]} {[%emt 00:00:32]} cxd5
{[%clk 00:00:41]} {[%emt 00:00:03]} 17. Bc5 {[%clk 00:01:42]} {[%emt 00:00:23]}
Rb8 {[%clk 00:00:22]} {[%emt 00:00:22]} 18. Qd4 {[%clk 00:01:37]} {[%emt
00:00:07]} Ne4 {[%clk 00:00:18]} {[%emt 00:00:07]} 19. Bxe7 {[%clk 00:01:29]}
{[%emt 00:00:11]} Qxe7 {[%clk 00:00:21]} 20. b3 {[%clk 00:01:25]} {[%emt
00:00:08]} Rfc8 {[%clk 00:00:16]} {[%emt 00:00:08]} 21. Bd3 {[%clk 00:01:03]}
{[%emt 00:00:24]} Nf6 {[%clk 00:00:12]} {[%emt 00:00:07]} 22. h3 {[%clk
00:00:41]} {[%emt 00:00:25]} Qb4 {[%clk 00:00:14]} 23. Qe5 {[%clk 00:00:31]}
{[%emt 00:00:14]} Qb7 {[%clk 00:00:09]} {[%emt 00:00:09]} 24. Nc5 {[%clk
00:00:27]} {[%emt 00:00:06]} Qe7 {[%clk 00:00:06]} {[%emt 00:00:06]} 25. Nxe6
{[%clk 00:00:15]} {[%emt 00:00:15]} fxe6 {[%clk 00:00:08]} {[%emt 00:00:02]} 26.
Rfe1 {[%clk 00:00:16]} Rxc1 {[%clk 00:00:08]} {[%emt 00:00:03]} 27. Qxb8+
{[%clk 00:00:17]} {[%emt 00:00:02]} Kf7 {[%clk 00:00:08]} {[%emt 00:00:03]} 28.
Rxc1 {[%clk 00:00:19]} 1-0

[Event "7° Rencontres Internationales des Echecs Francophones"]
[Site "PARIS, France"]
[Date "2019.08.10"]
[Round "1.3"]
[White "David, Alberto"]
[Black "Beladel, Brahim"]
[Result "1-0"]
[TimeControl "90'+30' + 30seconds/move"]
[WhiteElo "2554"]
[BlackElo "1872"]

1. e4 {[%clk 00:05:05]} {[%emt 00:00:02]} c5 {[%clk 00:05:05]} 2. Nf3 {[%clk
00:05:06]} d6 {[%clk 00:05:07]} 3. Bb5+ {[%clk 00:05:07]} Bd7 {[%clk 00:05:09]}
4. c4 {[%clk 00:05:09]} {[%emt 00:00:01]} Nf6 {[%clk 00:05:07]} {[%emt
00:00:05]} 5. Nc3 {[%clk 00:05:11]} {[%emt 00:00:01]} Nc6 {[%clk 00:05:07]}
{[%emt 00:00:02]} 6. d4 {[%clk 00:04:55]} {[%emt 00:00:16]} cxd4 {[%clk
00:05:05]} {[%emt 00:00:05]} 7. Nxd4 {[%clk 00:04:59]} {[%emt 00:00:02]} g6
{[%clk 00:04:47]} {[%emt 00:00:21]} 8. O-O {[%clk 00:04:56]} {[%emt 00:00:05]}
Bg7 {[%clk 00:04:49]} {[%emt 00:00:02]} 9. Bxc6 {[%clk 00:04:53]} {[%emt
00:00:07]} bxc6 {[%clk 00:04:49]} {[%emt 00:00:02]} 10. c5 {[%clk 00:04:52]}
{[%emt 00:00:05]} d5 {[%clk 00:04:36]} {[%emt 00:00:17]} 11. e5 {[%clk
00:04:38]} {[%emt 00:00:16]} Ne4 {[%clk 00:03:49]} {[%emt 00:00:50]} 12. Nxe4
{[%clk 00:04:39]} {[%emt 00:00:02]} dxe4 {[%clk 00:03:50]} {[%emt 00:00:01]} 13.
Bf4 {[%clk 00:04:40]} {[%emt 00:00:02]} O-O {[%clk 00:03:42]} {[%emt 00:00:12]}
14. Qc2 {[%clk 00:03:20]} {[%emt 00:01:23]} f5 {[%clk 00:02:01]} {[%emt
00:01:44]} 15. exf6 {[%clk 00:02:56]} {[%emt 00:00:26]} exf6 {[%clk 00:01:55]}
{[%emt 00:00:09]} 16. Qxe4 {[%clk 00:02:44]} {[%emt 00:00:16]} Re8 {[%clk
00:01:55]} {[%emt 00:00:03]} 17. Qc2 {[%clk 00:02:41]} {[%emt 00:00:06]} f5
{[%clk 00:01:33]} {[%emt 00:00:24]} 18. Nf3 {[%clk 00:01:52]} {[%emt 00:00:52]}
Qf6 {[%clk 00:01:24]} {[%emt 00:00:12]} 19. Rad1 {[%clk 00:01:52]} {[%emt
00:00:03]} Bc8 {[%clk 00:01:01]} {[%emt 00:00:26]} 20. Rd6 {[%clk 00:01:36]}
{[%emt 00:00:19]} Qxb2 {[%clk 00:01:02]} {[%emt 00:00:03]} 21. Qc4+ {[%clk
00:01:37]} {[%emt 00:00:02]} Kh8 {[%clk 00:01:03]} {[%emt 00:00:02]} 22. Ng5
{[%clk 00:01:38]} {[%emt 00:00:02]} Rf8 {[%clk 00:00:40]} {[%emt 00:00:27]} 23.
Nf7+ {[%clk 00:01:29]} {[%emt 00:00:11]} Rxf7 {[%clk 00:00:35]} {[%emt
00:00:08]} 24. Qxf7 {[%clk 00:01:30]} {[%emt 00:00:03]} Ba6 {[%clk 00:00:35]}
{[%emt 00:00:02]} 25. Rfd1 {[%clk 00:01:31]} {[%emt 00:00:02]} Rf8 {[%clk
00:00:09]} {[%emt 00:00:29]} 26. Rd8 {[%clk 00:01:31]} {[%emt 00:00:03]} 1-0